Workbook

Sheet Sheet1
B1: Smallest Lot for a Building
B3: This DIGMath module lets you investigate
B4: the calculus problem of finding
B5: the smallest lot that will contain
B6: a building having a given area
C7: given required distances
C8: on all sides.
A10: What is the area A of the building?
B11: (1000 - 10,000 square feet)? | F11: =D12*500+500 -> 3000
D12: 5 | E12: =#REF!+D12*(#REF!-#REF!)/100 -> 
A15: How much distance a in front (10 - 50 ft)? | F15: =D16 -> 31
D16: 31
L17: The graph of the Area = | O17: =TEXT(a+b,"0")&"x + " & TEXT(cc*RR,"0") & "/x +" & TEXT(RR+(a+b)*cc,"0") -> 59x + 57000/x +4121
A18: How much distance b in back (10 - 50 ft)? | F18: =D19 -> 28
D19: 28
L20: Select a horizontal length: x0 = | P20: =LOOKUP(O22,Sheet2!A3:A1003,Sheet2!B3:B1003) -> 31.84 | Q20: feet
A21: How much distance c on sides (10 - 25 ft)? | F21: =D22 -> 19
D22: 19 | O22: 156 | P22: =Sheet2!H7+O22*(Sheet2!H8-Sheet2!H7)/100 -> 228.4
A25: ="With a horizontal length of "&TEXT(x0,"0") &" feet for the building," -> With a horizontal length of 32 feet for the building,
A26: =" the vertical length of the building is "&TEXT(RR/x0,"0") &" feet," -> the vertical length of the building is 94 feet,
A28: ="The corresponding plot of land needed for the building" -> The corresponding plot of land needed for the building
A29: =" measures "&TEXT(x0+2*cc,"0")&" feet by "&TEXT(y0+a+b,"0")&" feet." -> measures 70 feet by 153 feet.
A34: Click each item below for suggestions and investigations
B35: Item 1
B36: Item 2
B37: Item 3
A42: To access/download all the DIGMath Apps for Calculus
A43: Click this link: | C43: DIGMath for Calculus
A45: Created by: Sheldon P. Gordon
A46: Farmingdale State College
A47: Development of this module was supported by the
A48: NSF's Division of Undergraduate Education
A49: under grants DUE-0310123 and DUE-0442160.

Sheet Sheet2
B1: x | C1: f(x) | G1: xl= | H1: =IF(Sheet1!$P$22<Sheet2!H7+80*Sheet2!H5,Sheet2!H7,Sheet1!P22-80*Sheet2!H5) -> 217.2 | I1: =LOOKUP(Sheet1!P22,Sheet2!B3:B1002,Sheet2!C3:C1002)+LOOKUP(Sheet1!P22,Sheet2!B3:B1002,Sheet2!D3:D1002)*(H1-Sheet1!P22) -> 13343.095 | J1: "=yl
G2: xr= | H2: =IF(Sheet1!$P$22>Sheet2!H8-80*Sheet2!H5,Sheet2!H8,Sheet1!P22+80*Sheet2!H5) -> 150 | I2: =LOOKUP(Sheet1!P22,Sheet2!B3:B1003,Sheet2!C3:C1003)+LOOKUP(Sheet1!P22,Sheet2!B3:B1003,Sheet2!D3:D1003)*(H2-Sheet1!P22) -> 13351 | J2: "=yR
A3: 0 | B3: =xMin -> 10.0 | C3: =(a+b)*x+cc*RR/x+RR+(a+b)*cc -> 10411
A4: 1 | B4: =B3+dx -> 10.1 | C4: 10340.56178
A5: 2 | B5: 10.3 | C5: 10272.26708 | G5: delta x = | H5: =(xMax-xMin)/1000 -> 0.14 | K5: swim distance
A6: 3 | B6: 10.4 | C6: 10206.02952 | K6: distance = | L6: =SQRT(x0^2+200^2) -> 202.5186056
A7: 4 | B7: 10.6 | C7: 10141.76727 | G7: xMin = | H7: 10 | K7: time = | L7: =L6/s -> 
A8: 5 | B8: 10.7 | C8: 10079.4028 | G8: xMax = | H8: =RR/20 -> 150
A9: 6 | B9: 10.8 | C9: 10018.86258
A10: 7 | B10: 11.0 | C10: 9960.076831 | J10: alpha = | K10: =LOOKUP(x0,B3:B1003:C3:C1003) -> 7789.761005 | L10: radians
A11: 8 | B11: 11.1 | C11: 9902.979281 | G11: Point | K11: =180/PI()*K10 -> 446320.429 | L11: degrees
A12: 9 | B12: 11.3 | C12: 9847.506963 | G12: =x0 -> 31.84 | H12: =LOOKUP(Sheet1!O22,Sheet2!A3:A1003,Sheet2!C3:C1003) -> 7789.761005
A13: 10 | B13: 11.4 | C13: 9793.6
A14: 11 | B14: 11.5 | C14: 9741.201421 | G14: Horizontal Line
A15: 12 | B15: 11.7 | C15: 9690.256986 | G15: 0 | H15: 0
A16: 13 | B16: 11.8 | C16: 9640.715025 | G16: =G12 -> 31.84 | H16: 0
A17: 14 | B17: 12.0 | C17: 9592.526288
A18: 15 | B18: 12.1 | C18: 9545.643802 | G18: Diagnonal Line
A19: 16 | B19: 12.2 | C19: 9500.022745 | G19: 0 | H19: 200
A20: 17 | B20: 12.4 | C20: 9455.620323 | G20: 997 | H20: 0
A21: 18 | B21: 12.5 | C21: 9412.395655
A22: 19 | B22: 12.7 | C22: 9370.309668
A23: 20 | B23: 12.8 | C23: 9329.325 | G23: Point on curve
A24: 21 | B24: 12.9 | C24: 9289.405904 | G24: x= | H24: =G12*H5 -> 4.4576
A25: 22 | B25: 13.1 | C25: 9250.518165 | G25: =x0 -> 31.84 | H25: =H12 -> 7789.761005
A26: 23 | B26: 13.2 | C26: 9212.629017
A27: 24 | B27: 13.4 | C27: 9175.707066 | G27: Vertical length of building y = | J27: =RR/x0 -> 94.22110553
A28: 25 | B28: 13.5 | C28: 9139.722222
A29: 26 | B29: 13.6 | C29: 9104.64563
A30: 27 | B30: 13.8 | C30: 9070.449608
A31: 28 | B31: 13.9 | C31: 9037.107586
A32: 29 | B32: 14.1 | C32: 9004.594054
A33: 30 | B33: 14.2 | C33: 8972.884507
A34: 31 | B34: 14.3 | C34: 8941.955397
A35: 32 | B35: 14.5 | C35: 8911.784088
A36: 33 | B36: 14.6 | C36: 8882.34881
A37: 34 | B37: 14.8 | C37: 8853.628618
A38: 35 | B38: 14.9 | C38: 8825.603356
A39: 36 | B39: 15.0 | C39: 8798.253617
A40: 37 | B40: 15.2 | C40: 8771.560711
A41: 38 | B41: 15.3 | C41: 8745.506632
A42: 39 | B42: 15.5 | C42: 8720.074023
A43: 40 | B43: 15.6 | C43: 8695.246154
A44: 41 | B44: 15.7 | C44: 8671.006887
A45: 42 | B45: 15.9 | C45: 8647.340655
A46: 43 | B46: 16.0 | C46: 8624.232434
A47: 44 | B47: 16.2 | C47: 8601.667723
A48: 45 | B48: 16.3 | C48: 8579.632515
A49: 46 | B49: 16.4 | C49: 8558.113285
A50: 47 | B50: 16.6 | C50: 8537.09696
A51: 48 | B51: 16.7 | C51: 8516.570909
A52: 49 | B52: 16.9 | C52: 8496.522918
A53: 50 | B53: 17.0 | C53: 8476.941176
A54: 51 | B54: 17.1 | C54: 8457.814259
A55: 52 | B55: 17.3 | C55: 8439.131111
A56: 53 | B56: 17.4 | C56: 8420.881033
A57: 54 | B57: 17.6 | C57: 8403.053667
A58: 55 | B58: 17.7 | C58: 8385.638983
A59: 56 | B59: 17.8 | C59: 8368.627265
A60: 57 | B60: 18.0 | C60: 8352.009099
A61: 58 | B61: 18.1 | C61: 8335.775364
A62: 59 | B62: 18.3 | C62: 8319.917218
A63: 60 | B63: 18.4 | C63: 8304.426087
A64: 61 | B64: 18.5 | C64: 8289.293657
A65: 62 | B65: 18.7 | C65: 8274.511863
A66: 63 | B66: 18.8 | C66: 8260.07288
A67: 64 | B67: 19.0 | C67: =(a+b)*x+cc*RR/x+RR+(a+b)*cc -> 8245.969114
A68: 65 | B68: =B67+dx -> 19.1 | C68: 8232.193194
A69: 66 | B69: 19.2 | C69: 8218.737963
A70: 67 | B70: 19.4 | C70: 8205.596471
A71: 68 | B71: 19.5 | C71: 8192.761967
A72: 69 | B72: 19.7 | C72: 8180.227894
A73: 70 | B73: 19.8 | C73: 8167.987879
A74: 71 | B74: 19.9 | C74: 8156.035727
A75: 72 | B75: 20.1 | C75: 8144.365418
A76: 73 | B76: 20.2 | C76: 8132.971098
A77: 74 | B77: 20.4 | C77: 8121.847073
A78: 75 | B78: 20.5 | C78: 8110.987805
A79: 76 | B79: 20.6 | C79: 8100.387907
A80: 77 | B80: 20.8 | C80: 8090.042137
A81: 78 | B81: 20.9 | C81: 8079.945392
A82: 79 | B82: 21.1 | C82: 8070.092707
A83: 80 | B83: 21.2 | C83: 8060.479245
A84: 81 | B84: 21.3 | C84: 8051.1003
A85: 82 | B85: 21.5 | C85: 8041.951285
A86: 83 | B86: 21.6 | C86: 8033.027734
A87: 84 | B87: 21.8 | C87: 8024.325294
A88: 85 | B88: 21.9 | C88: 8015.839726
A89: 86 | B89: 22.0 | C89: 8007.566897
A90: 87 | B90: 22.2 | C90: 7999.502777
A91: 88 | B91: 22.3 | C91: 7991.643441
A92: 89 | B92: 22.5 | C92: 7983.985058
A93: 90 | B93: 22.6 | C93: 7976.523894
A94: 91 | B94: 22.7 | C94: 7969.256306
A95: 92 | B95: 22.9 | C95: 7962.178741
A96: 93 | B96: 23.0 | C96: 7955.287732
A97: 94 | B97: 23.2 | C97: 7948.579896
A98: 95 | B98: 23.3 | C98: 7942.051931
A99: 96 | B99: 23.4 | C99: 7935.700614
A100: 97 | B100: 23.6 | C100: 7929.522799
A101: 98 | B101: 23.7 | C101: 7923.515413
A102: 99 | B102: 23.9 | C102: 7917.675457
A103: 100 | B103: 24.0 | C103: 7912
A104: 101 | B104: 24.1 | C104: 7906.486181
A105: 102 | B105: 24.3 | C105: 7901.131203
A106: 103 | B106: 24.4 | C106: 7895.932334
A107: 104 | B107: 24.6 | C107: 7890.886906
A108: 105 | B108: 24.7 | C108: 7885.992308
A109: 106 | B109: 24.8 | C109: 7881.24599
A110: 107 | B110: 25.0 | C110: 7876.64546
A111: 108 | B111: 25.1 | C111: 7872.18828
A112: 109 | B112: 25.3 | C112: 7867.872067
A113: 110 | B113: 25.4 | C113: 7863.694488
A114: 111 | B114: 25.5 | C114: 7859.653265
A115: 112 | B115: 25.7 | C115: 7855.746168
A116: 113 | B116: 25.8 | C116: 7851.971015
A117: 114 | B117: 26.0 | C117: 7848.32567
A118: 115 | B118: 26.1 | C118: 7844.808046
A119: 116 | B119: 26.2 | C119: 7841.416098
A120: 117 | B120: 26.4 | C120: 7838.147824
A121: 118 | B121: 26.5 | C121: 7835.001267
A122: 119 | B122: 26.7 | C122: 7831.974509
A123: 120 | B123: 26.8 | C123: 7829.065672
A124: 121 | B124: 26.9 | C124: 7826.272918
A125: 122 | B125: 27.1 | C125: 7823.594446
A126: 123 | B126: 27.2 | C126: 7821.028494
A127: 124 | B127: 27.4 | C127: 7818.573333
A128: 125 | B128: 27.5 | C128: 7816.227273
A129: 126 | B129: 27.6 | C129: 7813.988654
A130: 127 | B130: 27.8 | C130: 7811.855853
A131: 128 | B131: 27.9 | C131: =(a+b)*x+cc*RR/x+RR+(a+b)*cc -> 7809.827278
A132: 129 | B132: =B131+dx -> 28.1 | C132: 7807.901368
A133: 130 | B133: 28.2 | C133: 7806.076596
A134: 131 | B134: 28.3 | C134: 7804.351461
A135: 132 | B135: 28.5 | C135: 7802.724494
A136: 133 | B136: 28.6 | C136: 7801.194256
A137: 134 | B137: 28.8 | C137: 7799.759332
A138: 135 | B138: 28.9 | C138: 7798.418339
A139: 136 | B139: 29.0 | C139: 7797.169917
A140: 137 | B140: 29.2 | C140: 7796.012735
A141: 138 | B141: 29.3 | C141: 7794.945484
A142: 139 | B142: 29.5 | C142: 7793.966884
A143: 140 | B143: 29.6 | C143: 7793.075676
A144: 141 | B144: 29.7 | C144: 7792.270625
A145: 142 | B145: 29.9 | C145: 7791.550522
A146: 143 | B146: 30.0 | C146: 7790.914177
A147: 144 | B147: 30.2 | C147: 7790.360424
A148: 145 | B148: 30.3 | C148: 7789.888119
A149: 146 | B149: 30.4 | C149: 7789.496137
A150: 147 | B150: 30.6 | C150: 7789.183375
A151: 148 | B151: 30.7 | C151: 7788.94875
A152: 149 | B152: 30.9 | C152: 7788.791199
A153: 150 | B153: 31.0 | C153: 7788.709677
A154: 151 | B154: 31.1 | C154: 7788.70316
A155: 152 | B155: 31.3 | C155: 7788.770639
A156: 153 | B156: 31.4 | C156: 7788.911127
A157: 154 | B157: 31.6 | C157: 7789.12365
A158: 155 | B158: 31.7 | C158: 7789.407256
A159: 156 | B159: 31.8 | C159: 7789.761005
A160: 157 | B160: 32.0 | C160: 7790.183977
A161: 158 | B161: 32.1 | C161: 7790.675268
A162: 159 | B162: 32.3 | C162: 7791.233986
A163: 160 | B163: 32.4 | C163: 7791.859259
A164: 161 | B164: 32.5 | C164: 7792.550227
A165: 162 | B165: 32.7 | C165: 7793.306047
A166: 163 | B166: 32.8 | C166: 7794.125887
A167: 164 | B167: 33.0 | C167: 7795.008932
A168: 165 | B168: 33.1 | C168: 7795.954381
A169: 166 | B169: 33.2 | C169: 7796.961444
A170: 167 | B170: 33.4 | C170: 7798.029347
A171: 168 | B171: 33.5 | C171: 7799.157327
A172: 169 | B172: 33.7 | C172: 7800.344635
A173: 170 | B173: 33.8 | C173: 7801.590533
A174: 171 | B174: 33.9 | C174: 7802.894296
A175: 172 | B175: 34.1 | C175: 7804.255211
A176: 173 | B176: 34.2 | C176: 7805.672577
A177: 174 | B177: 34.4 | C177: 7807.145704
A178: 175 | B178: 34.5 | C178: 7808.673913
A179: 176 | B179: 34.6 | C179: 7810.256536
A180: 177 | B180: 34.8 | C180: 7811.892915
A181: 178 | B181: 34.9 | C181: 7813.582405
A182: 179 | B182: 35.1 | C182: 7815.32437
A183: 180 | B183: 35.2 | C183: 7817.118182
A184: 181 | B184: 35.3 | C184: 7818.963226
A185: 182 | B185: 35.5 | C185: 7820.858895
A186: 183 | B186: 35.6 | C186: 7822.804593
A187: 184 | B187: 35.8 | C187: 7824.799732
A188: 185 | B188: 35.9 | C188: 7826.843733
A189: 186 | B189: 36.0 | C189: 7828.936027
A190: 187 | B190: 36.2 | C190: 7831.076053
A191: 188 | B191: 36.3 | C191: 7833.26326
A192: 189 | B192: 36.5 | C192: 7835.497104
A193: 190 | B193: 36.6 | C193: 7837.777049
A194: 191 | B194: 36.7 | C194: 7840.102569
A195: 192 | B195: 36.9 | C195: =(a+b)*x+cc*RR/x+RR+(a+b)*cc -> 7842.473145
A196: 193 | B196: =B195+dx -> 37.0 | C196: 7844.888266
A197: 194 | B197: 37.2 | C197: 7847.347427
A198: 195 | B198: 37.3 | C198: 7849.850134
A199: 196 | B199: 37.4 | C199: 7852.395897
A200: 197 | B200: 37.6 | C200: 7854.984236
... 803 more rows

Sheet Sheet3
A1: =xMin -> 10 | B1: =9 -> 9
A2: =A1+dx -> 10.14 | B2: =9 -> 9
A3: 10.28 | B3: =9 -> 9
A4: 10.42 | B4: =9 -> 9
A5: 10.56 | B5: =9 -> 9
A6: 10.7 | B6: =9 -> 9
A7: 10.84 | B7: =9 -> 9
A8: 10.98 | B8: =9 -> 9
A9: 11.12 | B9: =9 -> 9
A10: 11.26 | B10: =9 -> 9
A11: 11.4 | B11: =9 -> 9
A12: 11.54 | B12: =9 -> 9
A13: 11.68 | B13: =9 -> 9
A14: 11.82 | B14: =9 -> 9
A15: 11.96 | B15: =9 -> 9
A16: 12.1 | B16: =9 -> 9
A17: 12.24 | B17: =9 -> 9
A18: 12.38 | B18: =9 -> 9
A19: 12.52 | B19: =9 -> 9
A20: 12.66 | B20: =9 -> 9
A21: 12.8 | B21: =9 -> 9
A22: 12.94 | B22: =9 -> 9
A23: 13.08 | B23: =9 -> 9
A24: 13.22 | B24: =9 -> 9
A25: 13.36 | B25: =9 -> 9
A26: 13.5 | B26: =9 -> 9
A27: 13.64 | B27: =9 -> 9
A28: 13.78 | B28: =9 -> 9
A29: 13.92 | B29: =9 -> 9
A30: 14.06 | B30: =9 -> 9
A31: 14.2 | B31: =9 -> 9
A32: 14.34 | B32: =9 -> 9
A33: 14.48 | B33: =9 -> 9
A34: 14.62 | B34: =9 -> 9
A35: 14.76 | B35: =9 -> 9
A36: 14.9 | B36: =9 -> 9
A37: 15.04 | B37: =9 -> 9
A38: 15.18 | B38: =9 -> 9
A39: 15.32 | B39: =9 -> 9
A40: 15.46 | B40: =9 -> 9
A41: 15.6 | B41: =9 -> 9
A42: 15.74 | B42: =9 -> 9
A43: 15.88 | B43: =9 -> 9
A44: 16.02 | B44: =9 -> 9
A45: 16.16 | B45: =9 -> 9
A46: 16.3 | B46: =9 -> 9
A47: 16.44 | B47: =9 -> 9
A48: 16.58 | B48: =9 -> 9
A49: 16.72 | B49: =9 -> 9
A50: 16.86 | B50: =9 -> 9
A51: 17 | B51: =9 -> 9
A52: 17.14 | B52: =9 -> 9
A53: 17.28 | B53: =9 -> 9
A54: 17.42 | B54: =9 -> 9
A55: 17.56 | B55: =9 -> 9
A56: 17.7 | B56: =9 -> 9
A57: 17.84 | B57: =9 -> 9
A58: 17.98 | B58: =9 -> 9
A59: 18.12 | B59: =9 -> 9
A60: 18.26 | B60: =9 -> 9
A61: 18.4 | B61: =9 -> 9
A62: 18.54 | B62: =9 -> 9
A63: 18.68 | B63: =9 -> 9
A64: 18.82 | B64: =9 -> 9
A65: 18.96 | B65: =9 -> 9
A66: =A65+dx -> 19.1 | B66: =9 -> 9
A67: 19.24 | B67: =9 -> 9
A68: 19.38 | B68: =9 -> 9
A69: 19.52 | B69: =9 -> 9
A70: 19.66 | B70: =9 -> 9
A71: 19.8 | B71: =9 -> 9
A72: 19.94 | B72: =9 -> 9
A73: 20.08 | B73: =9 -> 9
A74: 20.22 | B74: =9 -> 9
A75: 20.36 | B75: =9 -> 9
A76: 20.5 | B76: =9 -> 9
A77: 20.64 | B77: =9 -> 9
A78: 20.78 | B78: =9 -> 9
A79: 20.92 | B79: =9 -> 9
A80: 21.06 | B80: =9 -> 9
A81: 21.2 | B81: =9 -> 9
A82: 21.34 | B82: =9 -> 9
A83: 21.48 | B83: =9 -> 9
A84: 21.62 | B84: =9 -> 9
A85: 21.76 | B85: =9 -> 9
A86: 21.9 | B86: =9 -> 9
A87: 22.04 | B87: =9 -> 9
A88: 22.18 | B88: =9 -> 9
A89: 22.32 | B89: =9 -> 9
A90: 22.46 | B90: =9 -> 9
A91: 22.6 | B91: =9 -> 9
A92: 22.74 | B92: =9 -> 9
A93: 22.88 | B93: =9 -> 9
A94: 23.02 | B94: =9 -> 9
A95: 23.16 | B95: =9 -> 9
A96: 23.3 | B96: =9 -> 9
A97: 23.44 | B97: =9 -> 9
A98: 23.58 | B98: =9 -> 9
A99: 23.72 | B99: =9 -> 9
A100: 23.86 | B100: =9 -> 9
A101: 24 | B101: =9 -> 9
A102: 24.14 | B102: =9 -> 9
A103: 24.28 | B103: =9 -> 9
A104: 24.42 | B104: =9 -> 9
A105: 24.56 | B105: =9 -> 9
A106: 24.7 | B106: =9 -> 9
A107: 24.84 | B107: =9 -> 9
A108: 24.98 | B108: =9 -> 9
A109: 25.12 | B109: =9 -> 9
A110: 25.26 | B110: =9 -> 9
A111: 25.4 | B111: =9 -> 9
A112: 25.54 | B112: =9 -> 9
A113: 25.68 | B113: =9 -> 9
A114: 25.82 | B114: =9 -> 9
A115: 25.96 | B115: =9 -> 9
A116: 26.1 | B116: =9 -> 9
A117: 26.24 | B117: =9 -> 9
A118: 26.38 | B118: =9 -> 9
A119: 26.52 | B119: =9 -> 9
A120: 26.66 | B120: =9 -> 9
A121: 26.8 | B121: =9 -> 9
A122: 26.94 | B122: =9 -> 9
A123: 27.08 | B123: =9 -> 9
A124: 27.22 | B124: =9 -> 9
A125: 27.36 | B125: =9 -> 9
A126: 27.5 | B126: =9 -> 9
A127: 27.64 | B127: =9 -> 9
A128: 27.78 | B128: =9 -> 9
A129: 27.92 | B129: =9 -> 9
A130: =A129+dx -> 28.06 | B130: =9 -> 9
A131: 28.2 | B131: =9 -> 9
A132: 28.34 | B132: =9 -> 9
A133: 28.48 | B133: =9 -> 9
A134: 28.62 | B134: =9 -> 9
A135: 28.76 | B135: =9 -> 9
A136: 28.9 | B136: =9 -> 9
A137: 29.04 | B137: =9 -> 9
A138: 29.18 | B138: =9 -> 9
A139: 29.32 | B139: =9 -> 9
A140: 29.46 | B140: =9 -> 9
A141: 29.6 | B141: =9 -> 9
A142: 29.74 | B142: =9 -> 9
A143: 29.88 | B143: =9 -> 9
A144: 30.02 | B144: =9 -> 9
A145: 30.16 | B145: =9 -> 9
A146: 30.3 | B146: =9 -> 9
A147: 30.44 | B147: =9 -> 9
A148: 30.58 | B148: =9 -> 9
A149: 30.72 | B149: =9 -> 9
A150: 30.86 | B150: =9 -> 9
A151: 31 | B151: =9 -> 9
A152: 31.14 | B152: =9 -> 9
A153: 31.28 | B153: =9 -> 9
A154: 31.42 | B154: =9 -> 9
A155: 31.56 | B155: =9 -> 9
A156: 31.7 | B156: =9 -> 9
A157: 31.84 | B157: =9 -> 9
A158: 31.98 | B158: =9 -> 9
A159: 32.12 | B159: =9 -> 9
A160: 32.26 | B160: =9 -> 9
A161: 32.4 | B161: =9 -> 9
A162: 32.54 | B162: =9 -> 9
A163: 32.68 | B163: =9 -> 9
A164: 32.82 | B164: =9 -> 9
A165: 32.96 | B165: =9 -> 9
A166: 33.1 | B166: =9 -> 9
A167: 33.24 | B167: =9 -> 9
A168: 33.38 | B168: =9 -> 9
A169: 33.52 | B169: =9 -> 9
A170: 33.66 | B170: =9 -> 9
A171: 33.8 | B171: =9 -> 9
A172: 33.94 | B172: =9 -> 9
A173: 34.08 | B173: =9 -> 9
A174: 34.22 | B174: =9 -> 9
A175: 34.36 | B175: =9 -> 9
A176: 34.5 | B176: =9 -> 9
A177: 34.64 | B177: =9 -> 9
A178: 34.78 | B178: =9 -> 9
A179: 34.92 | B179: =9 -> 9
A180: 35.06 | B180: =9 -> 9
A181: 35.2 | B181: =9 -> 9
A182: 35.34 | B182: =9 -> 9
A183: 35.48 | B183: =9 -> 9
A184: 35.62 | B184: =9 -> 9
A185: 35.76 | B185: =9 -> 9
A186: 35.9 | B186: =9 -> 9
A187: 36.04 | B187: =9 -> 9
A188: 36.18 | B188: =9 -> 9
A189: 36.32 | B189: =9 -> 9
A190: 36.46 | B190: =9 -> 9
A191: 36.6 | B191: =9 -> 9
A192: 36.74 | B192: =9 -> 9
A193: 36.88 | B193: =9 -> 9
A194: =A193+dx -> 37.02 | B194: =9 -> 9
A195: 37.16 | B195: =9 -> 9
A196: 37.3 | B196: =9 -> 9
A197: 37.44 | B197: =9 -> 9
A198: 37.58 | B198: =9 -> 9
A199: 37.72 | B199: =9 -> 9
A200: 37.86 | B200: =9 -> 9
... 803 more rows
